fUSD/lending_fUSD_20260311
["ID","MTS","AMOUNT","RATE_DAILY","PERIOD"]
[408201486,1773222939773,510.67,0.00047457,60]
[408201487,1773222940038,510.67,0.00047457,60]
[408201488,1773222940359,510.67,0.00047457,60]
[408201489,1773222940587,510.67,0.00047457,60]
[408201490,1773222940814,510.67,0.00047457,60]
[408201491,1773222941082,510.67,0.00047457,60]
[408201492,1773222941314,510.67,0.00047457,60]
[408201493,1773222941537,510.67,0.00047457,60]
[408201494,1773222941766,510.67,0.00047457,60]
[408201496,1773222941995,510.67,0.00047457,60]
[408201497,1773222942233,510.67,0.00047457,60]
[408201498,1773222942439,510.67,0.00047457,60]
[408201499,1773222942715,510.90635303,0.00047457,60]
[408201514,1773223043898,500.0,0.00047457,120]
[408201517,1773223105985,1575.0,0.00047453,30]
[408201519,1773223151499,200.0,0.00047453,120]
[408201530,1773223275497,3647.61,0.00015,7]
[408201531,1773223275525,12774.6359189,0.00015,7]
[408201535,1773223343362,500.0,0.00047453,120]
[408201536,1773223353875,3876.60139891,0.00047454,120]
[408201537,1773223355076,5000.01,9.5e-05,3]
[408201538,1773223355101,7044.9178243,9.5e-05,3]
[408201539,1773223355127,2955.1021757,9.5e-05,3]
[408201540,1773223359582,1274.06356619,0.00047454,120]
[408201542,1773223367715,7280.0,0.00047454,30]
[408201547,1773223395624,2099.02,0.00047454,120]
[408201549,1773223406455,1791.67700514,0.00047454,120]
[408201550,1773223412218,402.0,0.00047454,30]
[408201551,1773223434168,864.43495803,0.00047454,120]
[408201553,1773223454835,531.69797408,0.00047454,120]
[408201554,1773223465403,1000.0,0.00047454,120]
[408201555,1773223486584,1000.0,0.00047454,120]
[408201557,1773223496006,1000.0,0.00047454,120]
[408201564,1773223512585,2709.38818983,0.00047454,30]
[408201565,1773223525553,1000.0,0.00047454,120]
[408201567,1773223539002,-339.94427316,0.000162,5]
[408201568,1773223539134,-160.05572684,0.000162,5]
[408201569,1773223539233,-171.95502664,0.000162,5]
[408201570,1773223539325,-547.09,0.000162,5]
[408201571,1773223539432,-1326.92848059,0.000162,5]
[408201572,1773223539521,-698.30352689,0.000162,5]
[408201573,1773223550442,1000.0,0.00047454,120]
[408201574,1773223561337,1000.0,0.00047454,120]
[408201576,1773223590238,1000.0,0.00047454,120]
[408201577,1773223597830,1000.0,0.00047454,120]
[408201579,1773223622321,1000.0,0.00047454,120]
[408201580,1773223629612,1000.0,0.00047454,120]
[408201581,1773223644219,1388.20589961,0.00047454,120]
[408201582,1773223644524,500.0,0.00047454,120]
[408201585,1773223717415,151.0,0.0002,120]
[408201587,1773223729697,151.0,0.0002,120]
[408201588,1773223740122,151.0,0.0002,120]
[408201589,1773223751437,200.0,0.00047453,120]
[408201592,1773223820767,-300.0,0.00017819,2]
[408201593,1773223820798,-1200.0,0.00017819,2]
[408201594,1773223820826,-166.66,0.00017957,2]
[408201595,1773223820856,-166.66,0.00018335,2]
[408201596,1773223820883,-195.0,0.00018711,2]
[408201597,1773223820913,-166.66,0.00018713,2]
[408201609,1773223831469,-6106.92,0.0001874,2]
[408201610,1773223831479,-2544.71769995,0.00018802,2]
[408201611,1773223831488,-2686.79,0.00018852,2]
[408201612,1773223831497,-1055.04,0.00018902,2]
[408201613,1773223831506,-2532.19657816,0.00018902,2]
[408201614,1773223831523,-6088.93583371,0.00018902,2]
[408201615,1773223831578,-6034.21886345,0.00018902,2]
[408201616,1773223831588,-4998.38872468,0.00018902,2]
[408201617,1773223831597,-881.61127532,0.00018902,2]
[408201618,1773223831608,-1300.0,0.00018902,2]
[408201619,1773223831619,-3250.0,0.00018902,2]
[408201636,1773223835420,500.0,0.00047453,60]
[408201637,1773223835677,596.03,0.00047453,60]
[408202020,1773223843062,-149.52373618,0.00018902,2]
[408202021,1773223845388,-269.8979985,0.00018902,2]
[408202022,1773223845399,-5027.7084385,0.00018902,2]
[408202023,1773223845411,-39218.3368558,0.00018902,2]
[408202024,1773223845427,-3102.34948791,0.00018902,2]
[408202025,1773223845442,-6720.0,0.00018902,2]
[408202026,1773223845454,-10027.51218967,0.00018902,2]
[408202027,1773223845464,-14121.47881074,0.00018902,2]
[408202028,1773223845659,-341.55927777,0.00018902,2]
[408202031,1773223862033,1081.47532083,0.00047453,30]
[408202032,1773223866052,8000.0,0.00047453,120]
[408202033,1773223866619,500.0,0.00047453,120]
[408202034,1773223866876,8000.0,0.00047453,120]
[408202035,1773223867239,8000.0,0.00047453,120]
[408202036,1773223868513,3000.0,0.00047453,120]
[408202037,1773223868547,578.20924308,0.00047453,120]
[408202038,1773223868722,500.0,0.00047453,120]
[408202039,1773223869136,3000.0,0.00047453,120]
[408202040,1773223869540,1386.28636175,0.00047453,120]
[408202041,1773223869766,3000.0,0.00047453,120]
[408202042,1773223870425,3000.0,0.00047453,120]
[408202043,1773223871049,3000.0,0.00047453,120]
[408202044,1773223871429,250.0,0.00047453,120]
[408202045,1773223871467,500.0,0.00047453,120]
[408202046,1773223872035,250.0,0.00047453,120]
[408202047,1773223872068,500.0,0.00047453,120]
[408202048,1773223872630,500.0,0.00047453,120]
[408202049,1773223872667,250.0,0.00047453,120]
[408202050,1773223873243,500.0,0.00047453,120]
[408202051,1773223873279,250.0,0.00047453,120]
[408202052,1773223873799,417.9161671,0.00047453,120]
[408202053,1773223873839,500.0,0.00047453,120]
[408202054,1773223873894,250.0,0.00047453,120]
[408202055,1773223874440,500.0,0.00047453,120]
[408202056,1773223875046,500.0,0.00047453,120]
[408202057,1773223875678,500.0,0.00047453,120]
[408202058,1773223876341,500.0,0.00047453,120]
[408202059,1773223876983,500.0,0.00047453,120]
[408202060,1773223877601,500.0,0.00047453,120]
[408202062,1773223890280,501.81,0.00047453,30]
[408202063,1773223926405,4508.89365093,0.00047453,120]
[408202065,1773223943527,500.0,0.00047453,120]
[408202067,1773223977584,604.0,0.000151,2]
[408202072,1773224125123,10000.0,0.00047454,120]
[408202073,1773224147121,8746.24,0.00047454,120]
[408202077,1773224244278,500.0,0.00047454,120]
[408202079,1773224295102,7868.00469751,0.00047454,30]
[408202082,1773224351449,200.0,0.00047454,120]
[408202084,1773224386808,342.73333943,0.00047454,30]
[408202085,1773224396622,1000.0,0.00047454,120]
[408202086,1773224406032,1000.8,0.00047454,120]
[408202089,1773224462869,50069.93896733,0.00047454,120]
[408202092,1773224544276,500.0,0.00047454,120]
[408202093,1773224555284,514.3130688,0.00047454,120]
[408202100,1773224729499,988.36504774,0.00047454,30]
[408202102,1773224762946,4242.38229241,0.00047454,120]
[408202105,1773224844852,500.0,0.00047454,120]
[408202107,1773224911090,12141.10072596,0.00047454,30]
[408202115,1773225031633,-422.36857509,0.00015731,2]
[408202116,1773225031741,-724.75142491,0.00015731,2]
[408202117,1773225031752,-200.0,0.00018473,2]
[408202118,1773225031761,-2000.0,0.00018488,2]
[408202119,1773225031771,-253.32,0.00018642,2]
[408202120,1773225031781,-500.0,0.00018702,2]
[408202121,1773225031790,-675.15,0.00018702,2]
[408202123,1773225031800,-200.0,0.00018714,2]
[408202124,1773225031810,-1149.67198374,0.00018802,2]
[408202126,1773225031820,-551.46,0.00018817,2]
[408202128,1773225031830,-300.0,0.00018901,2]
[408202130,1773225031840,-1550.35834654,0.00018902,2]
[408202131,1773225031850,-702.72,0.00018902,2]
[408202133,1773225031860,-1325.29,0.00018902,2]
[408202135,1773225031869,-17953.8788,0.00018918,2]
[408202137,1773225031879,-1000.0,0.00018991,2]
[408202139,1773225031888,-8765.9481,0.00018991,2]
[408202141,1773225031898,-5152.0428,0.00018991,2]
[408202143,1773225031907,-150.99,0.00018991,2]
[408202145,1773225031916,-3240.0,0.00019018,2]
[408202148,1773225031929,-9999.99,0.00019018,2]
[408202149,1773225031937,-24419.06311424,0.00019018,2]
[408202152,1773225031948,-344.22456,0.00019018,2]
[408202154,1773225031959,-303.1799,0.00019018,2]
[408202156,1773225031970,-383.18479221,0.00019018,2]
[408202157,1773225037778,-6295.55,0.00019018,2]
[408202158,1773225037789,-22903.03763355,0.00019018,2]
[408202159,1773225037799,-9999.99,0.00019018,2]
[408202160,1773225037808,-4067.72000362,0.00019081,2]
[408202161,1773225037817,-166.66,0.00019091,2]
[408202162,1773225037826,-675.15,0.0001917,2]
[408202163,1773225037835,-150.0,0.00019179,2]
[408202164,1773225037844,-2025.0,0.000193,2]
[408202165,1773225037854,-1200.0,0.000194,7]
[408202166,1773225037863,-150.0,0.00019407,2]
[408202167,1773225037872,-500.0,0.00019407,2]
[408202168,1773225037882,-150.0,0.00019407,2]
[408202169,1773225037891,-281.72961941,0.00019407,2]
[408202170,1773225037901,-150.0,0.00019407,2]
[408202171,1773225037910,-250.0,0.00019407,2]
[408202172,1773225037919,-150.0,0.00019407,2]
[408202173,1773225037928,-150.0,0.00019407,2]
[408202174,1773225037937,-150.0,0.00019407,2]
[408202175,1773225037948,-500.0,0.00019407,2]
[408202176,1773225037959,-150.0,0.00019407,2]
[408202177,1773225037969,-500.0,0.00019407,2]
[408202178,1773225037977,-150.0,0.00019407,2]
[408202179,1773225037986,-150.0,0.00019407,2]
[408202180,1773225037996,-150.0,0.00019407,2]
[408202181,1773225038005,-150.0,0.00019407,2]
[408202182,1773225038014,-150.0,0.00019407,2]
[408202183,1773225038024,-150.0,0.00019407,2]
[408202184,1773225038033,-1231.45,0.00019425,14]
[408202185,1773225038042,-150.0,0.00019462,2]
[408202187,1773225038052,-500.0,0.00019462,2]
[408202189,1773225038061,-150.0,0.00019462,2]
[408202191,1773225038070,-150.0,0.00019462,2]
[408202193,1773225038079,-253.69312086,0.00019462,2]
[408202195,1773225038088,-150.0,0.00019462,2]
[408202197,1773225038097,-500.0,0.00019462,2]
[408202199,1773225038106,-150.0,0.00019462,2]
[408202201,1773225038115,-500.0,0.00019462,2]
[408202203,1773225038124,-150.0,0.00019462,2]
[408202205,1773225038133,-150.0,0.00019462,2]
[408202207,1773225038143,-150.0,0.00019462,2]
[408202209,1773225038152,-150.0,0.00019462,2]
[408202211,1773225038161,-175.89347199,0.00019462,2]
[408202213,1773225038170,-175.0,0.00019469,2]
[408202215,1773225038179,-166.66,0.00019469,2]
[408202217,1773225038188,-5625.10591086,0.000195,3]
[408202219,1773225038197,-2500.0,0.000195,7]
[408202221,1773225038206,-250.0,0.00019517,2]
[408202223,1773225038215,-542.05975024,0.00019517,2]
[408202225,1773225038224,-150.0,0.00019517,2]
[408202227,1773225038233,-150.0,0.00019517,2]
[408202229,1773225038242,-150.0,0.00019517,2]
[408202231,1773225038251,-500.0,0.00019517,2]
[408202234,1773225038260,-400.0,0.00019517,2]
[408202236,1773225038270,-150.0,0.00019517,2]
[408202238,1773225038279,-200.0,0.00019517,2]
[408202239,1773225038289,-150.0,0.00019517,2]
[408202240,1773225038298,-150.0,0.00019517,2]
[408202241,1773225038307,-150.0,0.00019517,2]
[408202243,1773225038316,-168.0,0.00019552,2]
[408202244,1773225038325,-150.0,0.00019571,2]
[408202245,1773225038335,-150.0,0.00019571,2]
[408202246,1773225038344,-207.14225163,0.00019571,2]
[408202247,1773225038354,-363.19407865,0.00019571,2]
[408202248,1773225038363,-150.0,0.00019571,2]
[408202249,1773225038372,-150.0,0.00019571,2]
[408202250,1773225038381,-150.0,0.00019571,2]
[408202251,1773225038390,-195.57871635,0.00019571,2]
[408202252,1773225038399,-160.0,0.00019591,2]
[408202253,1773225038409,-172.95802059,0.00019591,2]
[408202254,1773225038418,-283.32010552,0.000196,2]
[408202255,1773225038433,-3700.0,0.000196,7]
[408202256,1773225038442,-1000.0,0.00019615,2]
[408202257,1773225038451,-239.0,0.00019626,2]
[408202258,1773225038460,-219.88127929,0.00019626,2]
[408202259,1773225038470,-161.27450762,0.00019626,2]
[408202260,1773225038479,-150.0,0.00019626,2]
[408202261,1773225038488,-250.0,0.00019626,2]
[408202262,1773225038497,-6792.80944098,0.00019637,2]
[408202263,1773225038508,-675.15,0.00019637,2]
[408202264,1773225038518,-168.0,0.00019641,2]
[408202265,1773225038527,-6792.80944092,0.00019666,2]
[408202266,1773225038536,-168.0,0.00019676,2]
[408202267,1773225038545,-168.0,0.00019678,2]
[408202268,1773225038554,-253.32,0.00019678,2]
[408202269,1773225038563,-199.0,0.00019681,2]
[408202270,1773225038572,-1000.0,0.00019691,2]
[408202271,1773225038581,-6792.80944092,0.00019695,2]
[408202272,1773225038591,-2179.624,0.000197,2]
[408202273,1773225038600,-179.349,0.000197,2]
[408202274,1773225038609,-5000.0,0.000197,7]
[408202275,1773225038619,-437.51,0.00019711,2]
[408202276,1773225038628,-2133.30115573,0.00019725,2]
[408202278,1773225040152,-373.58184969,0.00019725,2]
[408202279,1773225040163,-3451.94947151,0.00019725,2]
[408202280,1773225040419,-833.97696399,0.00019725,2]
[408202281,1773225040433,-500.0,0.00019736,2]
[408202282,1773225040445,-500.0,0.00019736,2]
[408202283,1773225040454,-500.0,0.00019736,2]
[408202284,1773225040463,-500.0,0.00019736,2]
[408202285,1773225040472,-490.11790468,0.00019736,2]
[408202290,1773225042905,-9.88209532,0.00019736,2]
[408202291,1773225042915,-500.0,0.00019736,2]
[408202292,1773225042924,-100.89678237,0.00019736,2]
[408202299,1773225065388,154.53,9.451e-05,2]
[408202300,1773225065581,154.53,0.00010042,2]
[408202301,1773225065994,154.53,0.00010632,2]
[408202302,1773225066210,154.53,0.00011223,2]
[408202303,1773225066436,154.53,0.00011814,2]
[408202304,1773225066628,154.53,0.00012405,2]
[408202305,1773225066826,154.53,0.00012995,2]
[408202306,1773225067054,154.53,0.00013586,2]
[408202307,1773225067281,154.53,0.00014177,2]
[408202308,1773225067504,154.53,0.00014767,2]
[408202310,1773225092806,2155.43678322,0.00047454,30]
[408202312,1773225123023,2054.42858037,0.00047454,30]
[408202314,1773225144737,500.0,0.00047454,120]
[408202320,1773225287087,4000.0,0.00047454,30]
[408202324,1773225367025,500.0,0.00047454,120]
[408202326,1773225425016,500.0,0.00047454,120]
[408202327,1773225427495,578.20924308,0.00047454,120]
[408202328,1773225430583,174.61919141,0.00047454,120]
[408202330,1773225444124,500.0,0.00047454,120]
[408202332,1773225481424,6457.58,0.00047453,120]
[408202333,1773225493821,164.369718,0.00047453,120]
[408202334,1773225497099,164.369718,0.00047453,120]
[408202335,1773225497595,299.89165903,0.00047453,120]
[408202336,1773225498948,164.369718,0.00047453,120]
[408202337,1773225503065,164.369718,0.00047453,120]
[408202338,1773225503362,200.0,0.00047453,120]
[408202339,1773225510102,618.41,0.00047453,120]
[408202341,1773225523452,-154.53,0.00015358,2]
[408202342,1773225523480,-154.53,0.00015949,2]
[408202343,1773225523509,-154.53,0.00016539,2]
[408202344,1773225523536,-1896.99250899,0.00016539,2]
[408202349,1773225639601,14000.0,0.00047453,30]
[408202353,1773225743741,500.0,0.00047453,120]
[408202376,1773225981593,-1647.11414996,0.00016873,2]
[408202377,1773225981620,-278.84498202,0.00016883,2]
[408202378,1773225981648,-154.53,0.0001713,2]
[408202379,1773225981675,-166.66,0.00017424,2]
[408202380,1773225981703,-154.53,0.00017721,2]
[408202381,1773225981734,-29.99173604,0.0001779,2]
[408202383,1773226042786,500.0,0.00047455,120]
[408202387,1773226131059,8007.0,0.00047455,30]
[408202398,1773226231755,-136.66826396,0.0001779,2]
[408202399,1773226231764,-140.71893602,0.000179,2]
[408202400,1773226231782,-214.08587971,0.000179,2]
[408202401,1773226231794,-354.80481573,0.00018057,2]
[408202402,1773226231803,-166.66,0.00018157,2]
[408202403,1773226231813,-154.53,0.00018311,2]
[408202404,1773226231822,-500.0,0.00018337,2]
[408202405,1773226231832,-500.0,0.00018493,2]
[408202406,1773226231843,-1200.0,0.00018523,2]
[408202407,1773226231853,-166.66,0.00018524,2]
[408202408,1773226231862,-2049.82,0.00018524,2]
[408202409,1773226231871,-696.81,0.00018524,2]
[408202410,1773226231880,-719.21,0.00018524,2]
[408202411,1773226231889,-1067.57,0.00018527,2]
[408202412,1773226231899,-5804.05,0.00018527,2]
[408202413,1773226231908,-150.0,0.00018527,2]
[408202414,1773226231918,-1265.09428998,0.00018726,2]
[408202415,1773226231927,-1034.04,0.00018737,2]
[408202416,1773226231936,-9999.99,0.00018737,2]
[408202417,1773226231945,-1616.01,0.00018737,2]
[408202418,1773226231955,-500.0,0.0001876,2]
[408202419,1773226231964,-9999.99,0.0001878,2]
[408202421,1773226231974,-9999.99,0.0001878,2]
[408202422,1773226231984,-150.99,0.0001878,2]
[408202423,1773226231994,-299.99,0.0001878,4]
[408202424,1773226232003,-999.99,0.0001878,2]
[408202425,1773226232012,-15365.53,0.0001878,2]
[408202427,1773226232022,-547.09,0.0001878,2]
[408202429,1773226232031,-1566.67,0.0001878,2]
[408202430,1773226232042,-2000.0,0.00018793,2]
[408202431,1773226232051,-166.66,0.00018891,2]
[408202432,1773226232060,-154.53,0.00018902,2]
[408202433,1773226232070,-166.66,0.00019258,2]
[408202434,1773226232079,-600.0,0.000194,7]
[408202435,1773226232088,-150.0,0.00019407,2]
[408202436,1773226232097,-177.99151511,0.00019407,2]
[408202437,1773226232106,-500.0,0.00019407,2]
[408202438,1773226232115,-500.0,0.00019407,2]
[408202439,1773226232124,-500.0,0.00019407,2]
[408202440,1773226232133,-150.0,0.00019407,2]
[408202441,1773226232144,-500.0,0.00019407,2]
[408202442,1773226232153,-150.0,0.00019407,2]
[408202443,1773226232162,-150.0,0.00019407,2]
[408202444,1773226232171,-150.0,0.00019462,2]
[408202445,1773226232180,-500.0,0.00019462,2]
[408202446,1773226232191,-500.0,0.00019462,2]
[408202447,1773226232200,-500.0,0.00019462,2]
[408202448,1773226232209,-500.0,0.00019462,2]
[408202449,1773226232218,-150.0,0.00019462,2]
[408202450,1773226232227,-150.0,0.00019462,2]
[408202451,1773226232236,-150.0,0.00019462,2]
[408202452,1773226232246,-150.0,0.00019462,2]
[408202453,1773226232255,-150.0,0.00019462,2]
[408202454,1773226232264,-150.0,0.00019462,2]
[408202455,1773226232273,-150.0,0.00019462,2]
[408202456,1773226232282,-150.0,0.00019462,2]
[408202457,1773226232291,-150.0,0.00019462,2]
[408202458,1773226232300,-150.0,0.00019462,2]
[408202459,1773226232309,-150.0,0.00019484,2]
[408202460,1773226232319,-1200.0,0.000195,7]
[408202461,1773226232327,-300.0,0.00019517,2]
[408202462,1773226232337,-150.0,0.00019517,2]
[408202463,1773226232348,-150.0,0.00019517,2]
[408202464,1773226232358,-500.0,0.00019517,2]
[408202465,1773226232369,-255.32887271,0.00019517,2]
[408202466,1773226232380,-150.0,0.00019517,2]
[408202467,1773226232391,-150.0,0.00019517,2]
[408202468,1773226232400,-150.0,0.00019517,2]
[408202469,1773226232411,-150.0,0.00019517,2]
[408202470,1773226232421,-150.0,0.00019517,2]
[408202471,1773226232431,-250.0,0.00019517,2]
[408202472,1773226232441,-150.0,0.00019517,2]
[408202473,1773226232450,-1220.1890652,0.00019523,2]
[408202474,1773226232459,-49678.7711,0.00019527,2]
[408202475,1773226232468,-150.0,0.00019539,2]
[408202476,1773226232477,-2500.0,0.00019571,2]
[408202477,1773226232486,-4978.21433431,0.00019571,2]
[408202478,1773226232495,-168.0,0.00019571,2]
[408202479,1773226232504,-150.0,0.00019572,2]
[408202480,1773226232513,-200.0,0.00019572,2]
[408202481,1773226232523,-200.0,0.00019572,2]
[408202482,1773226232538,-501.15105825,0.00019573,2]
[408202483,1773226232547,-500.0,0.00019573,2]
[408202484,1773226232556,-172.95802059,0.00019589,2]
[408202485,1773226232565,-200.0,0.00019594,2]
[408202486,1773226232574,-1900.0,0.000196,7]
[408202487,1773226232582,-4978.21433425,0.00019608,2]
[408202488,1773226232591,-2332.974,0.00019621,2]
[408202489,1773226232601,-179.34956161,0.00019621,2]
[408202490,1773226232613,-65496.89086837,0.00019627,2]
[408202491,1773226232622,-151.0,0.00019627,2]
[408202492,1773226232631,-151.0,0.00019627,2]
[408202493,1773226232640,-339.52156,0.00019627,2]
[408202494,1773226232649,-339.52156,0.00019627,2]
[408202495,1773226232658,-768.78387,0.00019627,2]
[408202496,1773226232668,-339.52156,0.00019627,2]
[408202497,1773226232677,-768.78387,0.00019627,2]
[408202498,1773226232686,-339.52156,0.00019627,2]
[408202499,1773226232695,-768.78387,0.00019627,2]
[408202500,1773226232704,-768.78387,0.00019627,2]
[408202501,1773226232713,-151.0,0.00019627,2]
[408202502,1773226232722,-151.0,0.00019627,2]
[408202503,1773226232731,-151.0,0.00019627,2]
[408202504,1773226232740,-151.0,0.00019627,2]
[408202505,1773226232751,-721.691172,0.00019627,2]
[408202506,1773226232761,-721.691172,0.00019627,2]
[408202507,1773226232773,-721.691172,0.00019627,2]
[408202508,1773226232785,-721.691172,0.00019627,2]
[408202509,1773226232795,-339.452692,0.00019627,2]
[408202510,1773226232806,-151.0,0.00019627,2]
[408202511,1773226232816,-1000.0,0.00019637,2]
[408202512,1773226232825,-1344.83815766,0.00019637,2]
[408202513,1773226232836,-4978.21433425,0.00019644,2]
[408202514,1773226232845,-2793.9369209,0.00019671,2]
[408202515,1773226232856,-12634.0125556,0.00019671,2]
[408202516,1773226232866,-4978.21433425,0.00019681,2]
[408202517,1773226232875,-3655.94844438,0.000197,2]
[408202518,1773226232884,-2500.0,0.000197,7]
[408202519,1773226232894,-17050.81,0.00019711,2]
[408202520,1773226232904,-151.0,0.00019711,2]
[408202521,1773226232914,-151.0,0.00019717,2]
[408202522,1773226232923,-151.0,0.00019717,2]
[408202523,1773226232932,-339.52156,0.00019717,2]
[408202524,1773226232941,-339.52156,0.00019717,2]
[408202525,1773226232950,-768.78387,0.00019717,2]
[408202526,1773226232959,-339.52156,0.00019717,2]
[408202527,1773226232968,-768.78387,0.00019717,2]
[408202528,1773226232977,-339.52156,0.00019717,2]
[408202529,1773226232987,-768.78387,0.00019717,2]
[408202530,1773226232996,-768.78387,0.00019717,2]
[408202531,1773226233005,-151.0,0.00019717,2]
[408202532,1773226233015,-151.0,0.00019717,2]
[408202533,1773226233024,-187.963813,0.00019717,2]
[408202534,1773226233033,-179.888077,0.00019717,2]
[408202535,1773226233043,-721.691172,0.00019717,2]
[408202536,1773226233052,-721.691172,0.00019717,2]
[408202537,1773226233062,-721.691172,0.00019717,2]
[408202538,1773226233075,-721.691172,0.00019717,2]
[408202539,1773226233085,-4978.21433425,0.00019717,2]
[408202540,1773226233095,-3655.94844435,0.00019722,2]
[408202541,1773226233104,-151.0,0.00019734,2]
[408202542,1773226233114,-617.9,0.00019736,2]
[408202543,1773226233123,-500.0,0.00019736,2]
[408202544,1773226233133,-500.0,0.00019736,2]
[408202545,1773226233142,-500.0,0.00019736,2]
[408202546,1773226233152,-500.0,0.00019736,2]
[408202547,1773226233162,-500.0,0.00019736,2]
[408202548,1773226233171,-433.71565809,0.00019736,2]
[408202549,1773226233181,-500.0,0.00019736,2]
[408202550,1773226233191,-500.0,0.00019736,2]
[408202551,1773226233201,-500.0,0.00019736,2]
[408202552,1773226233210,-500.0,0.00019736,2]
[408202553,1773226233220,-500.0,0.00019736,2]
[408202554,1773226233231,-544.11729675,0.00019736,2]
[408202555,1773226233240,-500.0,0.00019736,2]
[408202556,1773226233249,-500.0,0.00019736,2]
[408202557,1773226233259,-14451.8352403,0.00019737,2]
[408202558,1773226233269,-31263.90278479,0.00019737,2]
[408202559,1773226233403,-11841.63493881,0.00019737,2]
[408202560,1773226233414,-151.0,0.00019737,2]
[408202561,1773226233424,-156.021909,0.00019737,2]
[408202562,1773226233433,-339.52156,0.00019737,2]
[408202563,1773226233442,-339.52156,0.00019737,2]
[408202564,1773226233453,-768.78387,0.00019737,2]
[408202565,1773226233465,-339.52156,0.00019737,2]
[408202566,1773226233475,-768.78387,0.00019737,2]
[408202567,1773226233484,-339.52156,0.00019737,2]
[408202568,1773226233493,-768.78387,0.00019737,2]
[408202569,1773226233503,-768.78387,0.00019737,2]
[408202570,1773226233513,-151.0,0.00019737,2]
[408202571,1773226233522,-151.0,0.00019737,2]
[408202572,1773226233532,-33.79670855,0.00019737,2]
[408202573,1773226233543,-687.89446345,0.00019737,2]
[408202574,1773226233553,-721.691172,0.00019737,2]
[408202575,1773226233563,-721.691172,0.00019737,2]
[408202576,1773226233572,-721.691172,0.00019737,2]
[408202577,1773226233581,-154.017392,0.00019737,2]
[408202578,1773226233590,-3655.94844435,0.00019744,2]
[408202579,1773226233600,-4978.21433425,0.00019754,2]
[408202580,1773226233610,-551.46,0.00019758,2]
[408202581,1773226233619,-1847.96,0.00019761,2]
[408202582,1773226233629,-3655.94844435,0.00019767,2]
[408202583,1773226233638,-500.0,0.00019773,2]
[408202584,1773226233647,-500.81396462,0.00019773,2]
[408202585,1773226233657,-500.97367586,0.00019773,2]
[408202586,1773226233667,-500.41007802,0.00019773,2]
[408202587,1773226233677,-500.0,0.00019773,2]
[408202588,1773226233687,-3655.94844435,0.00019789,2]
[408202589,1773226233698,-4978.21433425,0.0001979,2]
[408202590,1773226233708,-151.0,0.00019793,2]
[408202591,1773226233718,-339.52156,0.00019793,2]
[408202592,1773226233728,-339.52156,0.00019793,2]
[408202593,1773226233738,-768.78387,0.00019793,2]
[408202594,1773226233747,-339.52156,0.00019793,2]
[408202595,1773226233757,-768.78387,0.00019793,2]
[408202596,1773226233771,-339.52156,0.00019793,2]
[408202597,1773226233781,-768.78387,0.00019793,2]
[408202598,1773226233790,-768.78387,0.00019793,2]
[408202599,1773226233800,-151.0,0.00019793,2]
[408202600,1773226233811,-151.0,0.00019793,2]
[408202601,1773226233820,-721.691172,0.00019793,2]